[Event "3. kolo JP družstev 2019/2020"]
[Site "Jesenik, Czech Republic"]
[Date "2019.11.09"]
[Round "1.15"]
[White "Bilek, Adam RET_C"]
[Black "Hutnik, Jan SKO"]
[Result "0-1"]
[TimeControl "3600+10"]
[WhiteElo "1000"]
[BlackElo "1000"]

1. e4 {[%clk 01:00:19]} {[%emt 00:00:01]} e5 {[%clk 01:00:11]} {[%emt
00:00:09]} 2. Nf3 {[%clk 01:00:21]} {[%emt 00:00:04]} Nc6 {[%clk 01:00:12]}
{[%emt 00:00:13]} 3. Nc3 {[%clk 01:00:19]} {[%emt 00:00:07]} Nf6 {[%clk
01:00:14]} {[%emt 00:00:13]} 4. Bb5 {[%clk 01:00:10]} {[%emt 00:00:14]} Bb4
{[%clk 01:00:08]} {[%emt 00:00:21]} 5. Bxc6 {[%clk 01:00:04]} {[%emt 00:00:15]}
bxc6 {[%clk 01:00:03]} {[%emt 00:00:15]} 6. Nxe5 {[%clk 00:59:58]} {[%emt
00:00:15]} O-O {[%clk 00:59:34]} {[%emt 00:00:40]} 7. O-O {[%clk 00:59:59]}
{[%emt 00:00:06]} Ba6 {[%clk 00:59:22]} {[%emt 00:00:26]} 8. d3 {[%clk
00:59:49]} {[%emt 00:00:17]} Bxc3 {[%clk 00:58:56]} {[%emt 00:00:39]} 9. bxc3
{[%clk 00:59:51]} {[%emt 00:00:08]} c5 {[%clk 00:57:31]} {[%emt 00:01:35]} 10.
Bg5 {[%clk 00:59:46]} {[%emt 00:00:14]} Re8 {[%clk 00:54:08]} {[%emt 00:03:34]}
11. Bxf6 {[%emt 00:00:26]} Qxf6 {[%emt 00:00:29]} 12. Nf3 {[%clk 00:58:45]}
{[%emt 00:00:12]} c4 {[%clk 00:53:51]} {[%emt 00:00:31]} 13. e5 {[%clk
00:58:04]} {[%emt 00:00:51]} Qg6 {[%clk 00:53:00]} {[%emt 00:01:00]} 14. Qd2
{[%clk 00:57:42]} {[%emt 00:00:28]} Bb7 {[%clk 00:52:50]} {[%emt 00:00:26]} 15.
Qg5 {[%clk 00:56:32]} {[%emt 00:01:19]} Qxg5 {[%clk 00:51:16]} {[%emt
00:01:44]} 16. Nxg5 {[%clk 00:56:19]} {[%emt 00:00:17]} Rxe5 {[%clk 00:49:55]}
{[%emt 00:01:37]} 17. Rab1 {[%clk 00:56:05]} {[%emt 00:00:23]} Rxg5 {[%clk
00:48:35]} {[%emt 00:01:31]} 18. Rxb7 {[%clk 00:55:38]} {[%emt 00:00:16]} cxd3
{[%clk 00:47:53]} {[%emt 00:01:13]} 19. Rfb1 {[%clk 00:55:14]} {[%emt
00:00:31]} h6 {[%clk 00:46:44]} {[%emt 00:01:22]} 20. cxd3 {[%clk 00:55:14]}
{[%emt 00:00:09]} Re5 {[%clk 00:46:31]} {[%emt 00:00:23]} 21. h3 {[%clk
00:54:56]} {[%emt 00:00:27]} c6 {[%clk 00:45:56]} {[%emt 00:00:47]} 22. Rxd7
{[%clk 00:54:45]} {[%emt 00:00:17]} Rd5 {[%clk 00:45:03]} {[%emt 00:01:07]} 23.
Rxd5 {[%clk 00:54:42]} {[%emt 00:00:13]} cxd5 {[%clk 00:45:08]} {[%emt
00:00:05]} 24. c4 {[%clk 00:54:29]} {[%emt 00:00:22]} Rd8 {[%clk 00:44:06]}
{[%emt 00:01:13]} 25. c5 {[%clk 00:54:11]} {[%emt 00:00:28]} Rc8 {[%clk
00:41:29]} {[%emt 00:02:48]} 26. Rb5 {[%clk 00:54:02]} {[%emt 00:00:19]} Rc6
{[%clk 00:38:40]} {[%emt 00:02:57]} 27. d4 {[%emt 00:00:16]} Re6 {[%clk
00:37:56]} {[%emt 00:00:53]} 28. c6 {[%clk 00:53:16]} {[%emt 00:00:52]} Rxc6
{[%clk 00:37:31]} {[%emt 00:00:35]} 29. Rxd5 {[%clk 00:53:19]} {[%emt
00:00:07]} Kf8 {[%emt 00:01:36]} 30. f3 {[%clk 00:53:09]} {[%emt 00:00:06]} Ke7
{[%clk 00:35:33]} {[%emt 00:00:57]} 31. Kf2 {[%clk 00:53:07]} {[%emt 00:00:11]}
Rc2+ {[%clk 00:35:18]} {[%emt 00:00:25]} 32. Ke3 {[%clk 00:53:03]} {[%emt
00:00:14]} Rxa2 {[%clk 00:35:14]} {[%emt 00:00:14]} 33. g4 {[%clk 00:52:34]}
{[%emt 00:00:35]} a5 {[%clk 00:34:40]} {[%emt 00:00:49]} 34. Ke4 {[%clk
00:52:35]} {[%emt 00:00:09]} a4 {[%clk 00:33:47]} {[%emt 00:01:03]} 35. Ra5
{[%clk 00:52:38]} {[%emt 00:00:07]} Ra1 {[%clk 00:33:16]} {[%emt 00:00:41]} 36.
Ra7+ {[%clk 00:51:51]} {[%emt 00:00:57]} Kf8 {[%clk 00:32:58]} {[%emt
00:00:29]} 37. Kd5 {[%clk 00:51:43]} {[%emt 00:00:17]} g6 {[%clk 00:32:13]}
{[%emt 00:00:55]} 38. Kc6 {[%clk 00:51:42]} {[%emt 00:00:11]} a3 {[%clk
00:32:13]} {[%emt 00:00:11]} 39. d5 {[%clk 00:51:46]} {[%emt 00:00:04]} a2
{[%clk 00:32:19]} {[%emt 00:00:06]} 40. Kd6 {[%clk 00:51:26]} {[%emt 00:00:29]}
Kg7 {[%clk 00:31:51]} {[%emt 00:00:38]} 41. Ke7 {[%clk 00:50:17]} {[%emt
00:01:19]} Re1+ {[%clk 00:31:34]} {[%emt 00:00:27]} 42. Kd6 {[%emt 00:00:11]}
a1=Q {[%emt 00:00:21]} 43. Rxa1 {[%clk 00:49:55]} Rxa1 {[%clk 00:31:41]} {[%emt
00:00:03]} 44. Ke7 {[%clk 00:49:40]} {[%emt 00:00:21]} Ra7+ {[%clk 00:31:45]}
{[%emt 00:00:10]} 45. Kd6 {[%clk 00:49:37]} {[%emt 00:00:08]} Kf6 {[%clk
00:31:43]} {[%emt 00:00:17]} 46. f4 {[%clk 00:49:26]} {[%emt 00:00:19]} Ra6+
{[%emt 00:00:30]} 47. Kc5 {[%clk 00:49:22]} {[%emt 00:00:02]} Ke7 {[%clk
00:31:32]} {[%emt 00:00:15]} 48. h4 {[%clk 00:49:07]} {[%emt 00:00:10]} Kd7
{[%clk 00:31:31]} {[%emt 00:00:26]} 49. g5 {[%clk 00:49:07]} {[%emt 00:00:11]}
hxg5 {[%clk 00:31:36]} {[%emt 00:00:05]} 50. hxg5 {[%clk 00:49:09]} {[%emt
00:00:08]} Ra5+ {[%clk 00:31:18]} {[%emt 00:00:28]} 51. Kd4 {[%clk 00:49:04]}
{[%emt 00:00:10]} Kd6 {[%clk 00:31:25]} {[%emt 00:00:07]} 52. Ke4 {[%clk
00:48:54]} {[%emt 00:00:20]} Ra4+ {[%clk 00:31:18]} {[%emt 00:00:17]} 53. Kf3
{[%clk 00:48:52]} {[%emt 00:00:08]} Kxd5 {[%clk 00:31:27]} {[%emt 00:00:06]} 54.
Kg4 {[%clk 00:49:01]} Ke6 {[%clk 00:31:18]} {[%emt 00:00:19]} 55. Kf3 {[%clk
00:48:46]} {[%emt 00:00:25]} Kf5 {[%clk 00:31:21]} {[%emt 00:00:07]} 56. Kg3
{[%clk 00:48:47]} {[%emt 00:00:09]} Ra3+ {[%clk 00:31:25]} {[%emt 00:00:06]} 57.
Kh4 {[%clk 00:48:52]} {[%emt 00:00:04]} Ra4 {[%clk 00:31:06]} {[%emt 00:00:30]}
58. Kg3 {[%clk 00:48:48]} {[%emt 00:00:13]} Rxf4 {[%clk 00:31:00]} {[%emt
00:00:16]} 59. Kh3 {[%clk 00:48:36]} {[%emt 00:00:20]} Kxg5 {[%clk 00:31:05]}
{[%emt 00:00:08]} 60. Kg3 {[%clk 00:48:37]} {[%emt 00:00:09]} Ra4 {[%clk
00:31:11]} {[%emt 00:00:05]} 61. Kf3 {[%clk 00:48:34]} {[%emt 00:00:11]} Kf5
{[%clk 00:31:15]} {[%emt 00:00:07]} 62. Ke3 {[%clk 00:48:32]} {[%emt 00:00:12]}
Ke5 {[%clk 00:31:21]} {[%emt 00:00:05]} 63. Kd3 {[%emt 00:00:08]} Kd5 {[%emt
00:00:04]} 64. Ke3 {[%clk 00:48:18]} {[%emt 00:00:09]} g5 {[%clk 00:31:26]}
{[%emt 00:00:08]} 65. Kf3 {[%clk 00:48:19]} {[%emt 00:00:05]} Ke5 {[%clk
00:31:25]} {[%emt 00:00:14]} 66. Kg3 {[%clk 00:48:12]} {[%emt 00:00:13]} Kf5
{[%clk 00:31:23]} {[%emt 00:00:15]} 67. Kf3 {[%clk 00:48:09]} {[%emt 00:00:10]}
Ra3+ {[%clk 00:31:32]} {[%emt 00:00:06]} 68. Kg2 {[%emt 00:00:06]} Kf4 {[%emt
00:00:02]} 69. Kf2 {[%clk 00:48:01]} {[%emt 00:00:09]} Ra2+ {[%clk 00:31:41]}
{[%emt 00:00:02]} 70. Ke1 {[%clk 00:47:58]} {[%emt 00:00:13]} Kf3 {[%clk
00:31:46]} {[%emt 00:00:05]} 71. Kf1 {[%clk 00:47:41]} {[%emt 00:00:08]} Ra1#
{[%clk 00:31:46]} 0-1